Cogmind - Beta 12 --- EXPLORER MODE // 2023.03.26 @ 05:50:14 Player: Rainynight Result: Destroyed by Tesla Bomb Trap Performance ------------- Evolutions (5) 2500 Regions Visited (7) 1400 Robots Destroyed (2) 10 Value Destroyed (17) 17 Prototype IDs (0) 0 Alien Tech Used (0) 0 Bonus (665) 665 TOTAL SCORE: 4592 Bonus ------- Devolution -13500 Fragile Parts 1250 No Salvage 1260 Pure Core 2503 Scavenger 5000 Simple Hacker 2402 Trapped 1250 Entered DSFs 500 Cogmind --------- Core Integrity 0/800 Matter 300/300 Energy 98/100 System Corruption 2% Temperature Cool (0) Movement Core (50) Location -5/Factory Parts ------- > --- POWER (2) -------- (None) > --- PROPULSION (7) --- (None) > --- UTILITY (1) ------ (None) > --- WEAPON (6) ------- (None) > --- INVENTORY (0) ---- (None) Peak State ------------ None Favorites ----------- Power None Propulsion None Utility None Weapon None Build | -11 -10 -9 -8 -7 -7 -6 -5 ------- Run | Jun Mat Mat Mat Fac DSF Fac Fac Slots Evolved -4 | . 1 -1 -1 -1 . -1 -1 Power . | . . . . . . . . Propulsion -1 | . . . -1 . . . . Utility -2 | . . -1 . -1 . . . Weapon -1 | . 1 . . . . -1 -1 Parts Attached . | . . . . . . . . Power . | . . . . . . . . Engine . | . . . . . . . . Core . | . . . . . . . . Reactor . | . . . . . . . . Propulsion . | . . . . . . . . Treads . | . . . . . . . . Leg . | . . . . . . . . Wheel . | . . . . . . . . Hover . | . . . . . . . . Flight . | . . . . . . . . Utility . | . . . . . . . . Device . | . . . . . . . . Storage . | . . . . . . . . Processor . | . . . . . . . . Hackware . | . . . . . . . . Protection . | . . . . . . . . Artifact . | . . . . . . . . Weapon . | . . . . . . . . Energy Gun . | . . . . . . . . Energy Cannon . | . . . . . . . . Ballistic Gun . | . . . . . . . . Ballistic Cannon . | . . . . . . . . Launcher . | . . . . . . . . Special Weapon . | . . . . . . . . Impact Weapon . | . . . . . . . . Slashing Weapon . | . . . . . . . . Piercing Weapon . | . . . . . . . . Special Melee Weapon . | . . . . . . . . Unidentified Prototypes . | . . . . . . . . Parts Lost . | . . . . . . . . Power . | . . . . . . . . Propulsion . | . . . . . . . . Utility . | . . . . . . . . Weapon . | . . . . . . . . Highest Loss Streak . | . . . . . . . . To Critical Strikes . | . . . . . . . . Average Slot Usage (%) . | . . . . . . . . Naked Turns 787 | . 91 168 53 1 117 98 259 Heaviest Build . | . . . . . . . . Greatest Support 3 | 3 3 3 3 3 3 3 3 Greatest Overweight (x) . | . . . . . . . . Average Overweight (x) . | . . . . . . . . Largest Inventory Capacity . | . . . . . . . . Average Capacity . | . . . . . . . . Most Carried . | . . . . . . . . Average Carried . | . . . . . . . . Final Capacity . | . . . . . . . . Final Carried . | . . . . . . . . Class Distribution -------------------- 100% | Hacker-Mutant Dominant Class ---------------- Hacker-Mutant | -10/Materials Hacker-Mutant | -9/Materials Hacker-Mutant | -8/Materials Hacker-Mutant | -7/Factory Hacker-Mutant | -7/DSF Hacker-Mutant | -6/Factory Hacker-Mutant | -5/Factory Resources | -11 -10 -9 -8 -7 -7 -6 -5 ----------- Run | Jun Mat Mat Mat Fac DSF Fac Fac Matter Collected 93 | 25 68 . . . . . . Remotely . | . . . . . . . . Salvage Created 45 | 25 . 20 . . . . . Parts . | . . . . . . . . Haulers Intercepted . | . . . . . . . . Recyclers Shooed . | . . . . . . . . Parts Field Recycled . | . . . . . . . . Retrieved Matter . | . . . . . . . . Parts Self-Destructed . | . . . . . . . . Prevented . | . . . . . . . . Kills | -11 -10 -9 -8 -7 -7 -6 -5 ------- Run | Jun Mat Mat Mat Fac DSF Fac Fac Combat Hostiles Destroyed 1 | . . 1 . . . . . Melee 1 | . . 1 . . . . . Classes Destroyed 2 | 1 . 1 . . . . . Tunneler 1 | 1 . . . . . . . Swarmer 1 | . . 1 . . . . . Best Kill Streak 1 | 1 . 1 . . . . . Combat Bots Only 1 | . . 1 . . . . . Max Kills in Single Turn 1 | 1 . 1 . . . . . Gunslinging . | . . . . . . . . Exploded . | . . . . . . . . Melee 1 | . . 1 . . . . . Uniques/NPCs Destroyed . | . . . . . . . . Combat | -11 -10 -9 -8 -7 -7 -6 -5 -------- Run | Jun Mat Mat Mat Fac DSF Fac Fac Damage Taken 2350 | 5 84 458 56 . 692 244 811 Core 2350 | 5 84 458 56 . 692 244 811 Absorbed by Shields 179 | . . . . . 179 . . Core Remaining (%) 67 | 99 88 42 93 . 13 69 . Volleys Fired . | . . . . . . . . Largest . | . . . . . . . . Hottest . | . . . . . . . . Shots Fired . | . . . . . . . . Gun . | . . . . . . . . Cannon . | . . . . . . . . Launcher . | . . . . . . . . Special . | . . . . . . . . Kinetic . | . . . . . . . . Thermal . | . . . . . . . . Explosive . | . . . . . . . . Electromagnetic . | . . . . . . . . Robot Hit Streak . | . . . . . . . . Robot Miss Streak . | . . . . . . . . Penetration Max . | . . . . . . . . Secondary Targets . | . . . . . . . . Shots Hit Robots . | . . . . . . . . Core Hits 10 | 2 1 4 . . . 1 2 Critical Kills . | . . . . . . . . Critical Parts Destroyed . | . . . . . . . . Critical Strikes . | . . . . . . . . Melee Attacks . | . . . . . . . . Impact . | . . . . . . . . Slashing . | . . . . . . . . Piercing . | . . . . . . . . Sneak Attacks . | . . . . . . . . Combat Hostiles . | . . . . . . . . Follow-up Attacks . | . . . . . . . . Damage Inflicted 246 | 13 23 95 . . 16 9 90 Guns . | . . . . . . . . Cannons . | . . . . . . . . Explosions . | . . . . . . . . Melee . | . . . . . . . . Ramming 246 | 13 23 95 . . 16 9 90 Kinetic . | . . . . . . . . Thermal . | . . . . . . . . Explosive . | . . . . . . . . Electromagnetic . | . . . . . . . . Impact . | . . . . . . . . Slashing . | . . . . . . . . Piercing . | . . . . . . . . Highest Corruption 3 | . . 1 . . 1 3 2 Average Corruption 1 | . . 1 . . 1 2 1 Corruption Purged . | . . . . . . . . Corruption Blocked . | . . . . . . . . Effects 3 | . . . . . . 3 . Message Errors 1 | . . . . . . 1 . Heat Flow Errors 2 | . . . . . . 2 . Overload Shots . | . . . . . . . . Overflow Damage . | . . . . . . . . Projectiles . | . . . . . . . . Explosions . | . . . . . . . . Melee . | . . . . . . . . Knockbacks 2 | . . 1 . . . . 1 Impact 2 | . . 1 . . . . 1 Kinetic . | . . . . . . . . Secondary . | . . . . . . . . Self-Inflicted Damage 104 | 5 10 39 . . 7 4 39 Shots . | . . . . . . . . Rammed 67 | 3 6 33 . . 2 3 20 Targets Rammed 67 | 3 6 33 . . 2 3 20 Kicked . | . . . . . . . . Crushed . | . . . . . . . . Highest Temperature 128 | . . 7 . . . 128 23 Average Temperature 43 | . . 7 . . . 61 10 Received Heat Transfer 492 | . 15 123 9 . . 75 270 Siege Activations . | . . . . . . . . Robots Corrupted . | . . . . . . . . Combat Hostiles . | . . . . . . . . Parts Fried . | . . . . . . . . Impact Corruptions . | . . . . . . . . Robots Melted . | . . . . . . . . Combat Hostiles . | . . . . . . . . Parts Melted . | . . . . . . . . Heat Transferred . | . . . . . . . . Parts Sabotaged . | . . . . . . . . Parts Stolen . | . . . . . . . . Parts Stripped . | . . . . . . . . Power Chain Reactions . | . . . . . . . . Missiles Intercepted . | . . . . . . . . Alert | -11 -10 -9 -8 -7 -7 -6 -5 ------- Run | Jun Mat Mat Mat Fac DSF Fac Fac Peak Influence 391 | 5 15 180 71 23 41 114 391 Initial 54 | . 2 4 54 23 11 15 40 Average 67 | 1 5 53 59 23 22 26 139 Maximum Alert Level 1 | . . . . . . . 1 Low Security (%) 92 | 100 100 100 100 100 100 100 77 Level 1 7 | . . . . . . . 22 Level 2 . | . . . . . . . . Level 3 . | . . . . . . . . Level 4 . | . . . . . . . . Level 5 . | . . . . . . . . High Security . | . . . . . . . . Max Security . | . . . . . . . . Squads Dispatched 10 | . . 3 . . 1 1 5 Investigation 8 | . . 2 . . . 1 5 Extermination . | . . . . . . . . Reinforcement 2 | . . 1 . . 1 . . Assault . | . . . . . . . . Garrison . | . . . . . . . . Intercept . | . . . . . . . . Searches Triggered . | . . . . . . . . Construction Impeded . | . . . . . . . . Haulers Reinforced . | . . . . . . . . Active Scanning Responses . | . . . . . . . . Cargo Convoy Interrupts . | . . . . . . . . Stealth | -11 -10 -9 -8 -7 -7 -6 -5 --------- Run | Jun Mat Mat Mat Fac DSF Fac Fac Distress Signals 1 | . . 1 . . . . . Communications Jammed . | . . . . . . . . Distress Signals . | . . . . . . . . Times Spotted 58 | . 5 16 1 . 7 10 19 Peak Tracking Total 10 | . 5 8 2 . 4 5 10 Tactical Retreats 12 | . . 4 . . 2 1 5 Traps | -11 -10 -9 -8 -7 -7 -6 -5 ------- Run | Jun Mat Mat Mat Fac DSF Fac Fac Traps Triggered 32 | . 1 4 2 . 10 5 10 Indirectly . | . . . . . . . . Trap Hack Attempts . | . . . . . . . . Triggered . | . . . . . . . . Disarmed . | . . . . . . . . Reprogrammed . | . . . . . . . . Reused . | . . . . . . . . Traps Extracted . | . . . . . . . . Installed . | . . . . . . . . Triggered . | . . . . . . . . Machines | -11 -10 -9 -8 -7 -7 -6 -5 ---------- Run | Jun Mat Mat Mat Fac DSF Fac Fac Machines Disabled . | . . . . . . . . Max in Single Turn . | . . . . . . . . Machines Repaired . | . . . . . . . . Machines Sabotaged . | . . . . . . . . Overloaded Fab Kills . | . . . . . . . . Hacking | -11 -10 -9 -8 -7 -7 -6 -5 --------- Run | Jun Mat Mat Mat Fac DSF Fac Fac Machines Accessed 18 | . 3 4 1 1 . 5 4 Terminals 18 | . 3 4 1 1 . 5 4 Fabricators . | . . . . . . . . Repair Stations . | . . . . . . . . Recycling Units . | . . . . . . . . Scanalyzers . | . . . . . . . . Garrison Access . | . . . . . . . . Total Hacks 37 | . 6 8 3 1 . 10 9 Successful 22 | . 5 4 2 1 . 7 3 Failed 15 | . 1 4 1 . . 3 6 Catastrophic 1 | . . . 1 . . . . Database Lockouts . | . . . . . . . . Manual . | . . . . . . . . Terminals 37 | . 6 8 3 1 . 10 9 Fabricators . | . . . . . . . . Repair Stations . | . . . . . . . . Recycling Units . | . . . . . . . . Scanalyzers . | . . . . . . . . Garrison Access . | . . . . . . . . Terminal Hacks 22 | . 5 4 2 1 . 7 3 Robot Analysis 1 | . . . . . . 1 . Open DSF 2 | . . . . 1 . 1 . Level Access Points 2 | . . . . . . 1 1 Branch Access Points 3 | . 1 . . . . 1 1 Emergency Access Points 3 | . . 2 1 . . . . Unreport Threat 5 | . 2 1 . . . 2 . Zone Layout 6 | . 2 1 1 . . 1 1 Fabricator Hacks . | . . . . . . . . Repair Station Hacks . | . . . . . . . . Recycling Unit Hacks . | . . . . . . . . Scanalyzer . | . . . . . . . . Garrison Access Hacks . | . . . . . . . . Unauthorized Hacks . | . . . . . . . . Terminals . | . . . . . . . . Fabricators . | . . . . . . . . Repair Stations . | . . . . . . . . Recycling Units . | . . . . . . . . Scanalyzers . | . . . . . . . . Garrison Access . | . . . . . . . . Data Cores Recovered 1 | . . 1 . . . . . Used . | . . . . . . . . Hacking Detections 10 | . 1 2 1 . . 2 4 Full Trace Events 6 | . . 2 1 . . 1 2 Feedback Events 1 | . . . . . . 1 . Corruption 1 | . . . . . . 1 . Feedback Blocked . | . . . . . . . . Robot Schematics Acquired . | . . . . . . . . Robots Built . | . . . . . . . . Authchips . | . . . . . . . . Time . | . . . . . . . . Total Robot Build Rating . | . . . . . . . . Part Schematics Acquired . | . . . . . . . . Parts Built . | . . . . . . . . Authchips . | . . . . . . . . Time . | . . . . . . . . Total Part Build Rating . | . . . . . . . . Parts Repaired . | . . . . . . . . Time . | . . . . . . . . Parts Recycled . | . . . . . . . . Recycled Matter . | . . . . . . . . Retrieved Matter . | . . . . . . . . Retrieved Components . | . . . . . . . . Parts Scanalyzed . | . . . . . . . . Part Schematics Acquired . | . . . . . . . . Parts Damaged . | . . . . . . . . Bothacking | -11 -10 -9 -8 -7 -7 -6 -5 ------------ Run | Jun Mat Mat Mat Fac DSF Fac Fac Used RIF Installer . | . . . . . . . . Robots Hacked . | . . . . . . . . Non-combat . | . . . . . . . . Combat . | . . . . . . . . Robot Hacks Applied . | . . . . . . . . Relay Couplers Released . | . . . . . . . . Fabnet Peak Effective % . | . . . . . . . . Robots Rewired . | . . . . . . . . Allies Hacked . | . . . . . . . . Hacks Repelled . | . . . . . . . . Allies | -11 -10 -9 -8 -7 -7 -6 -5 -------- Run | Jun Mat Mat Mat Fac DSF Fac Fac Total Allies . | . . . . . . . . Largest Group . | . . . . . . . . Highest-Rated Group . | . . . . . . . . Highest-Rated Ally . | . . . . . . . . Total Orders . | . . . . . . . . Ally Attacks . | . . . . . . . . Total Damage . | . . . . . . . . Kills . | . . . . . . . . Allies Corrupted . | . . . . . . . . Allies Melted . | . . . . . . . . Intel | -11 -10 -9 -8 -7 -7 -6 -5 ------- Run | Jun Mat Mat Mat Fac DSF Fac Fac Robot Analysis Total 1 | . . . . . . 1 . Derelict Logs Recovered . | . . . . . . . . Drone Launches . | . . . . . . . . Drone Recoveries . | . . . . . . . . Exploration | -11 -10 -9 -8 -7 -7 -6 -5 ------------- Run | Jun Mat Mat Mat Fac DSF Fac Fac Turns Passed 798 | 11 91 168 53 1 117 98 259 Spaces Moved 1287 | 16 169 269 105 3 87 160 478 Core 1287 | 16 169 269 105 3 87 160 478 Treads . | . . . . . . . . Legs . | . . . . . . . . Wheels . | . . . . . . . . Hover . | . . . . . . . . Flight . | . . . . . . . . Fastest Speed 50 | 50 50 50 50 50 50 50 50 Average Speed 50 | 50 50 50 50 50 50 50 50 Slowest Speed 50 | 50 50 50 50 50 50 50 50 Overloaded Moves . | . . . . . . . . Propulsion Burnouts . | . . . . . . . . Robots Hopped . | . . . . . . . . Cave-ins Triggered . | . . . . . . . . Exploration Rate (%) 29 | 3 36 36 16 . 91 7 20 Regions Visited 7 Branch Regions . Pre-discovered Areas . | . . . . . . . . Known Exits Taken 6 | 1 1 1 1 1 . 1 . Unknown Exits Taken . | . . . . . . . . Scrap Searched . | . . . . . . . . Spaces Dug . | . . . . . . . . Terrain Destroyed . | . . . . . . . . Melee . | . . . . . . . . Projectile . | . . . . . . . . AOE . | . . . . . . . . Terrain Rammed . | . . . . . . . . Walls Destroyed . | . . . . . . . . Machines Disabled . | . . . . . . . . Actions | -11 -10 -9 -8 -7 -7 -6 -5 --------- Run | Jun Mat Mat Mat Fac DSF Fac Fac Total 1434 | 18 174 301 104 2 160 177 498 Wait . | . . . . . . . . Move 1282 | 15 168 268 104 2 87 160 478 Hop . | . . . . . . . . Pick Up . | . . . . . . . . Fast Attach . | . . . . . . . . Attach . | . . . . . . . . Detach . | . . . . . . . . Swap . | . . . . . . . . Drop . | . . . . . . . . Fire . | . . . . . . . . Melee . | . . . . . . . . Ram 65 | 3 6 33 . . 1 2 20 Kick . | . . . . . . . . Crush . | . . . . . . . . Escape Stasis 87 | . . . . . 72 15 . Rewire . | . . . . . . . . Trap . | . . . . . . . . Miscellaneous . | . . . . . . . . Route ------- -11/Junkyard -10/Materials (discovered 2 exits: *Mat / Min) -9/Materials -8/Materials -7/Factory -7/DSF -6/Factory (discovered 6 exits: *Fac x4 / Low x2) -5/Factory (discovered 8 exits: Fac x4 / Upp x2 / Ext x2) History --------- Turn | Location | Event 3 | -11/Junkyard | Identified exit to Materials 3 | -11/Junkyard | Discovered exit to Materials (range 14) 12 | -11/Junkyard | Entered Materials 12 | -10/Materials | Devolved, losing -1 slots: Weapon x1 97 | -10/Materials | Identified exit to Mines 99 | -10/Materials | Identified exit to Materials 99 | -10/Materials | Discovered exit to Materials (range 8) 103 | -10/Materials | Entered another Materials area 103 | -9/Materials | Devolved, losing 1 slot: Utility x-1 258 | -9/Materials | Identified exit to Materials 258 | -9/Materials | Discovered exit to Materials (range 18) 261 | -9/Materials | Core integrity fell below 50% 271 | -9/Materials | Entered another Materials area 271 | -8/Materials | Devolved, losing 1 slot: Propulsion x-1 305 | -8/Materials | Build established: Hacker-Mutant 316 | -8/Materials | Identified exit to Factory 316 | -8/Materials | Discovered exit to Factory (range 15) 324 | -8/Materials | Entered Factory 324 | -7/Factory | Devolved, losing 1 slot: Utility x-1 325 | -7/Factory | Identified exit to DSF 325 | -7/Factory | Entered DSF 354 | -7/DSF | Additional patrols routed to DSF 411 | -7/DSF | Core integrity fell below 50% 424 | -7/DSF | Identified exit to Factory 424 | -7/DSF | Discovered exit to Factory (range 14) 440 | -7/DSF | Core integrity fell below 20% 442 | -7/DSF | Entered Factory 442 | -6/Factory | Devolved, losing 1 slot: Weapon x-1 455 | -6/Factory | Identified exit to Lower Caves 508 | -6/Factory | Identified exit to Factory 540 | -6/Factory | Entered another Factory area 540 | -5/Factory | Devolved, losing 1 slot: Weapon x-1 680 | -5/Factory | Core integrity fell below 50% 725 | -5/Factory | Core integrity fell below 20% 741 | -5/Factory | Identified exit to Upper Caves 741 | -5/Factory | Identified exit to Extension 795 | -5/Factory | Identified exit to Factory 799 | -5/Factory | Destroyed by Tesla Bomb Trap Last Messages --------------- 00778_ K-01 Serf destroyed. 00778_ Matter Pump disabled. 00778_ K-01 Serf destroyed. 00778_ Matter Pump disabled. 00778_ K-01 Serf collects debris. 00787_ Slammed into W-25 Informer. 00788_ Slammed into K-01 Serf. 00788_ K-01 Serf knocked back. 00795_ Connecting with Terminal... >>Access(Main) Found 4 level access points to Factory: (172,81) (14,79) (83,7) (184,76) Map updated. 00797_ Slammed into T-07 Excavator. 00797_ Destabilizing: System corrupted (+1). 00799_ Triggered Tesla Bomb Trap. 00799_ A bubble of electromagnetic force engulfs the area. Map ----- +----------------------------------------------------+ | ?????????????????????????????????????????????????? | | ?????????????????????????????????????????????????? | | ?????????????????????????????????????????????????? | | ?????????????????????????????????????????????????? | | ?????????????????????????????????????????????????? | | ?????????????????????????????????????????????????? | | ?????????????????????????????????????????????????? | | ?????????????????????????????????????????????????? | | ?????????????????????????????????????????????????? | | ?????????????????????????????????????????????????? | | ?????????????????????????????????????????????????? | | ?????????????????????????????????????????????????? | | ?????????????????????????????????????????????????? | | ?????????????????????????????????????????????????? | | ?????????????????????????????????????????????????? | | ?????????????????????????????????????????????????? | | ?????????????????????????????????????????????????? | | ?????????????????????????????????????????????????? | | ?????????????????????????????????????????????????? | | ?????????????????????????????????????????????????? | | ??????????????????????########???????????????????? | | ??????###???######????# #???????????????????? | | ??????? ??? ????+ "S !#???????????????????? | | ???????# ? ????# """ #???????????????????? | | ???????# """ #???# t"" #???????????????????? | | ???????# """ #???# @ #???????????????????? | | ???????# """ #???# [#???????????????????? | | ???????# ########+###???????????????????? | | ???????# %#?????????????????????? | | ???????# ########+#####?????????????????? | | ???##### % # |#?????????????????? | | ?? + #?????????????????? | | ?? # #?????????????????? | | ?? # """ """ #?????????????????? | | ????#############%# """T""" #?????????????????? | | ????????????????#%##############?????????????????? | | ??????????#######+######?????????????????????????? | | ??????????# #?????????????????????????? | | ??????????#! * #?????????????????????????? | | ??????????# ! #?????????????????????????? | | ??????????# #?????????????????????????? | | ??????????# #?????????????????????????? | | ??????????# #?????????????????????????? | | ??????????# ! #?????????????????????????? | | ??????????# #?????????????????????????? | | ??????????#! #?????????????????????????? | | ??????????# #?????????????????????????? | | ??????????# #?????????????????????????? | | ??????????# #?????????????????????????? | | ??????????#######+#+###############??????????????? | +----------------------------------------------------+ Best States ------------- Heat Dissipation 20 Energy Generation 5 Energy Capacity 100 Matter Stores 300 Matter Capacity 300 Sight Range 16 Terrain Scan Density 10 Resistance: KI 35 Resistance: TH 35 Resistance: EX 35 Resistance: EM 35 Resistance: I 35 Resistance: S 35 Resistance: P 35 Evasion (%) 50 Offensive Hacking 20 Item Schematics ----------------- None Robot Schematics ------------------ None Fabricated ------------ Nothing Alien Tech Used ----------------- None Achievements -------------- None Challenges ------------ Devolution Fragile Parts No Salvage Pure Core Scavenger Simple Hacker Trapped Game ------ Seed HugeHoverSaw Manual? 0 Play Time 00:13:48 Cumulative 282.1 hours Start 2023.03.26 @ 05:39:31 End 2023.03.26 @ 05:50:14 Sessions 1 Manual Loads 0 Difficulty Explorer Special Mode None Game No. 276 Rogue 254 Adventurer 1 Explorer 21 Win Type - Total 16 Types 13/1/0/2/0/0/0/0/0 Lore% 74 Gallery% 80 Achievement% 72 Wizard Run 0 Options --------- ASCII 1 Keyboard 1 Movement Numpad Keybinds 1 Fullscreen 1 Font 18/X11 Map View 76x50 Tactical HUD 1 Map Filters NONE Filters NONE Steam 1 RUN: ed7236a4-db1a-4951-a9bc-d103eed7b8cf